bitfinex-derivatives/quotes_SOLF0:USTF0_20240824
["timestamp","ask_amount","ask_price","bid_price","bid_amount"]
[1724458472478,25.1,152.9,152.87,3.31663544]
[1724458472479,25.1482251,152.9,152.87,3.31663544]
[1724458472881,25.1482251,152.9,152.88,3.2678]
[1724458473487,25.1482251,152.9,152.88,3.2679]
[1724458473873,0.0482251,152.9,152.89,3.2676]
[1724458502998,28.36064709,153.0,152.89,3.2676]
[1724458502999,25.1,153.08,152.89,25.1]
[1724458503206,25.1,153.01,152.92,25.1]
[1724458503502,25.1,152.99,152.92,25.1]
[1724458503702,28.3655,152.99,152.93,3.32467743]
[1724458503899,0.04192907,152.98,152.94,0.05010276]
[1724458504299,0.04192907,152.98,152.95,3.2662]
[1724458504526,0.04192907,152.98,152.94,0.05010276]
[1724458504693,0.04192907,152.98,152.94,1.43550276]
[1724458504892,0.04192907,152.98,152.95,3.2662]
[1724458507705,0.04192907,152.98,152.96,3.2661]
[1724458507897,0.04192907,152.98,152.94,1.43550276]
[1724458508094,0.04192907,152.98,152.95,25.1]
[1724458508295,0.04192907,152.98,152.97,3.2659]
[1724458510904,0.04192907,152.98,152.94,5.9182463]
[1724458511103,0.04192907,152.98,152.94,2.69030276]
[1724458511300,5.9085,153.07,152.97,25.1]
[1724458511499,4.6199,153.07,152.99,25.1]
[1724458511697,1.3559,153.07,152.99,25.1]
[1724458511902,4.6197,153.07,153.02,3.2647]
[1724458512101,3.30270073,153.11,153.02,3.2647]
[1724458512409,0.04142802,153.07,153.03,0.04321544]
[1724458512601,3.2642,153.06,153.03,0.04321544]
[1724458512801,25.1,153.05,153.03,0.04321544]
[1724458512997,28.3644,153.05,153.03,0.04321544]
[1724458514908,25.1,153.05,153.03,0.04321544]
[1724458517724,28.3643,153.05,153.03,0.04321544]
[1724458519512,25.1,153.05,153.03,0.04321544]
[1724458520324,28.3642,153.05,153.03,0.04321544]
[1724458524124,25.1,153.05,153.03,0.04321544]
[1724458525428,28.3643,153.05,153.03,0.04321544]
[1724458527127,25.1,153.05,152.96,27.4828]
[1724458527328,25.1,153.0,152.96,26.12]
[1724458527917,25.1,153.0,152.97,3.2657]
[1724458528144,25.14456357,153.0,152.97,3.31043661]
[1724458528718,25.1,152.99,152.97,0.04473661]
[1724458529523,3.2657,152.98,152.97,0.04473661]
[1724458531628,3.2661,152.97,152.93,3.2667]
[1724458531821,25.1,152.96,152.93,3.2667]
[1724458532024,25.1,152.94,152.86,1.2796]
[1724458532631,0.0460812,152.93,152.9,0.04350152]
[1724458533629,0.0460812,152.93,152.91,3.267]
[1724458533834,0.0460812,152.93,152.9,0.04350152]
[1724458534033,0.0460812,152.93,152.9,25.14350152]
[1724458534232,0.0460812,152.93,152.92,3.267]
[1724458534469,25.1,153.0,152.92,25.1]
[1724458535535,0.04330915,152.98,152.94,0.04484943]
[1724458535733,3.30920915,152.98,152.94,3.31134943]
[1724458537535,0.04330915,152.98,152.95,3.2663]
[1724458537733,0.04330915,152.98,152.94,0.04484943]
[1724458539434,0.04330915,152.98,152.96,3.2661]
[1724458539634,0.04330915,152.98,152.94,0.04484943]
[1724458539635,0.04330915,152.98,152.94,3.33207587]
[1724458539839,3.2645,153.04,152.97,25.1]
[1724458540035,3.2645,153.04,152.98,2.6234]
[1724458540343,25.1,153.08,152.99,25.1]
[1724458540537,25.1,153.08,153.0,3.2652]
[1724458540538,3.2644,153.04,153.0,3.2652]
[1724458540739,3.31113057,153.04,153.0,3.3100734]
[1724458541132,0.04673057,153.04,153.0,3.3100734]
[1724458546041,3.31123057,153.04,153.0,3.3100734]
[1724458548441,3.31123057,153.04,153.0,0.0448734]
[1724458549245,3.2647,153.03,153.0,0.0448734]
[1724458549649,25.14673057,153.04,153.0,0.0448734]
[1724458549841,3.2648,153.03,153.0,0.0448734]
[1724458550941,0.04673057,153.04,153.0,3.3101734]
[1724458551144,0.04673057,153.04,153.0,0.0448734]
[1724458552946,0.04673057,153.04,153.01,3.2649]
[1724458554649,0.04673057,153.04,153.0,0.0448734]
[1724458554848,3.2647,153.03,153.0,0.0448734]
[1724458555364,3.2651,153.01,153.0,0.0448734]
[1724458555548,25.14673057,153.04,153.0,0.0448734]
[1724458555747,25.1,153.02,153.0,0.0448734]
[1724458556044,25.1,153.02,152.92,2.658]
[1724458556245,25.1,152.99,152.92,2.658]
[1724458556552,25.1,152.97,152.92,5.9248]
[1724458557047,28.41376079,152.97,152.93,26.16388029]
[1724458557244,25.14766079,152.97,152.93,26.16388029]
[1724458557648,3.2666,152.94,152.93,0.04388029]
[1724458558153,28.3666,152.94,152.93,0.04388029]
[1724458558853,3.2666,152.94,152.93,0.04388029]
[1724458562851,28.3664,152.95,152.93,0.04388029]
[1724458566151,3.2666,152.94,152.93,0.04388029]
[1724458566960,28.3666,152.94,152.93,0.04388029]
[1724458567781,3.2671,152.92,152.89,70.30970903]
[1724458568656,3.30872566,152.92,152.89,70.35773302]
[1724458569556,0.04162566,152.92,152.89,70.35773302]
[1724458569755,25.1,152.91,152.89,70.35773302]
[1724458569947,25.1,152.91,152.89,0.04802399]
[1724458570149,28.3674,152.9,152.89,0.04802399]
[1724458570454,25.1,152.9,152.81,2.7644]
[1724458570658,28.368,152.88,152.83,29.3889]
[1724458570959,25.1,152.88,152.83,29.3889]
[1724458571348,0.04646527,152.87,152.84,0.04443746]
[1724458571754,3.31456527,152.87,152.84,0.04443746]
[1724458571955,0.04646527,152.87,152.84,3.31313746]
[1724458572849,0.04646527,152.87,152.85,3.2685]
[1724458574160,0.04646527,152.87,152.84,0.04443746]
[1724458575552,3.2684,152.86,152.84,0.04443746]
[1724458575854,25.1,152.86,152.84,0.04443746]
[1724458577459,3.2685,152.85,152.84,0.04443746]
[1724458578256,25.1,152.86,152.84,0.04443746]
[1724458578454,28.3685,152.86,152.84,0.04443746]
[1724458578656,0.04646527,152.87,152.84,0.04443746]
[1724458578851,3.2683,152.86,152.84,0.04443746]
[1724458579454,3.2685,152.85,152.84,0.04443746]
[1724458580265,28.3683,152.86,152.84,0.04443746]
[1724458582164,3.2685,152.85,152.84,0.04443746]
[1724458582471,25.1,152.86,152.77,1.3637]
[1724458582660,25.1,152.83,152.77,4.0365]
[1724458582859,25.1,152.83,152.79,3.2696]
[1724458583565,28.41723955,152.83,152.8,3.2696]
[1724458583965,25.14833955,152.83,152.8,3.2696]
[1724458584163,0.04833955,152.83,152.8,3.2696]
[1724458587570,28.41733955,152.83,152.79,0.04268922]
[1724458587960,25.14833955,152.83,152.79,0.04268922]
[1724458588158,3.2696,152.8,152.79,0.04268922]
[1724458588359,25.1,152.81,152.79,0.04268922]
[1724458589468,3.2696,152.8,152.79,0.04268922]
[1724458592758,28.3694,152.81,152.79,0.04268922]
[1724458592960,25.1,152.81,152.79,0.04268922]
[1724458593168,3.2692,152.82,152.79,0.04268922]
[1724458593465,25.14833955,152.83,152.79,0.04268922]
[1724458593668,25.14833955,152.83,152.8,3.2694]
[1724458594163,28.41733955,152.83,152.8,3.2694]
[1724458594665,25.14833955,152.83,152.8,3.2694]
[1724458594861,0.04833955,152.83,152.82,3.2691]
[1724458595783,25.1,152.93,152.79,0.04268922]
[1724458595784,25.1,152.89,152.84,3.2687]
[1724458595971,25.1,152.89,152.81,25.1]
[1724458596471,28.3678,152.89,152.84,3.2686]
[1724458596670,0.04965326,152.88,152.85,0.04967706]
[1724458597470,3.31755326,152.88,152.85,0.04967706]
[1724458600766,0.04965326,152.88,152.85,0.04967706]
[1724458601570,0.04965326,152.88,152.85,3.31797706]
[1724458601970,0.04965326,152.88,152.85,0.04967706]
[1724458602168,0.04965326,152.88,152.86,3.268]
[1724458602687,0.04965326,152.88,152.87,3.2679]
[1724458605590,0.04965326,152.88,152.86,2.604]
[1724458609214,3.31735326,152.88,152.86,2.604]
[1724458609990,3.31735326,152.88,152.85,0.04967706]
[1724458610192,3.31735326,152.88,152.85,3.31797706]
[1724458611397,0.04965326,152.88,152.85,3.31797706]
[1724458611585,0.04965326,152.88,152.86,3.2681]
[1724458612097,0.04965326,152.88,152.86,5.8595]
[1724458612797,0.04965326,152.88,152.87,3.2679]
[1724458613086,25.1,152.91,152.87,3.2679]
[1724458613087,28.3671,152.91,152.87,3.2679]
[1724458613491,28.3671,152.91,152.86,2.5914]
[1724458613492,28.3671,152.91,152.88,3.2676]
[1724458614088,28.41643963,152.91,152.88,3.2676]
[1724458614693,25.14933963,152.91,152.88,3.2676]
[1724458614889,0.04933963,152.91,152.88,3.2676]
[1724458615097,0.04933963,152.91,152.86,2.5914]
[1724458615291,0.7671,153.03,152.87,25.1]
[1724458615486,25.1,152.96,152.87,25.1]
[1724458615709,25.1,152.94,152.86,2.5914]
[1724458615898,25.1,152.92,152.86,2.5914]
[1724458616094,25.1,152.9,152.86,2.5914]
[1724458616396,25.14359599,152.9,152.87,3.2677]
[1724458618193,0.04359599,152.9,152.87,3.2677]
[1724458618394,3.31089599,152.9,152.86,5.90756439]
[1724458618598,3.31089599,152.9,152.86,2.63956439]
[1724458619322,3.31089599,152.9,152.86,5.90766439]
[1724458620397,3.2677,152.88,152.86,2.63956439]
[1724458620594,25.14359599,152.9,152.86,0.04816439]
[1724458620901,0.04359599,152.9,152.88,3.2676]
[1724458621694,25.1,152.96,152.86,3.38959758]
[1724458621994,25.1,152.96,152.85,25.1]
[1724458622196,3.2666,152.93,152.89,3.2673]
[1724458622400,25.1,153.0,152.87,25.1]
[1724458622593,25.1,152.99,152.89,25.1]
[1724458622794,25.1,152.99,152.92,0.0434538]
[1724458622795,0.04654205,152.96,152.92,0.0434538]
[1724458624515,3.2652,153.0,152.96,3.2659]
[1724458625502,3.2652,153.0,152.96,3.31446586]
[1724458625798,0.04195931,153.0,152.97,3.2657]
[1724458626003,0.04195931,153.0,152.97,4.6122]
[1724458627091,0.04195931,153.0,152.97,1.3465]
[1724458627796,3.30725931,153.0,152.97,1.3465]
[1724458627993,0.04195931,153.0,152.97,1.3465]
[1724458629099,3.30715931,153.0,152.97,1.3465]
[1724458629400,0.04195931,153.0,152.97,1.3465]
[1724458630502,3.2653,152.99,152.97,1.3465]
[1724458631299,0.04195931,153.0,152.97,4.6122]
[1724458631503,0.04195931,153.0,152.97,1.3465]
[1724458631901,3.30715931,153.0,152.97,1.3465]
[1724458632404,0.04195931,153.0,152.97,1.3465]
[1724458632899,3.30715931,153.0,152.97,1.3465]
[1724458634308,3.2654,152.99,152.96,0.04856586]
[1724458637496,3.2657,152.97,152.96,0.04856586]
[1724458637700,28.3657,152.97,152.96,0.04856586]
[1724458638616,25.14195931,153.0,152.96,0.04856586]
[1724458638617,3.2656,152.98,152.96,0.04856586]
[1724458639504,3.2654,152.99,152.96,0.04856586]
[1724458640707,0.04195931,153.0,152.96,0.04856586]
[1724458642906,0.04195931,153.0,152.96,2.68706586]
[1724458643104,0.04195931,153.0,152.97,1.3735]
[1724458643512,0.04195931,153.0,152.98,3.2655]
[1724458644913,0.04195931,153.0,152.99,3.2653]
[1724458645101,3.2644,153.04,152.97,1.3735]
[1724458645305,25.1,153.05,153.0,3.2649]
[1724458646211,0.04948196,153.04,153.01,0.04251718]
[1724458646412,3.2645,153.03,153.01,0.04251718]
[1724458647608,3.31378196,153.04,153.01,0.04251718]
[1724458647807,0.04948196,153.04,153.01,0.04251718]
[1724458648009,3.31388196,153.04,153.01,0.04251718]
[1724458649407,0.04948196,153.04,153.03,3.2645]
[1724458649604,25.1,153.1,153.02,1.2981]
[1724458649806,25.1,153.08,153.02,1.2981]
[1724458650499,3.2639,153.06,153.03,0.04492492]
[1724458653214,3.2642,153.04,153.03,0.04492492]
[1724458653412,28.3642,153.04,153.03,0.04492492]
[1724458657410,3.2647,153.02,152.97,5.9342]
[1724458657615,28.3647,153.02,152.97,5.9342]
[1724458657818,28.3647,153.02,152.98,3.2655]
[1724458658419,3.2649,153.01,152.98,0.04493496]
[1724458659224,3.2651,153.0,152.98,0.04493496]
[1724458660022,3.2649,153.01,152.98,0.04493496]
[1724458660913,0.04808699,153.02,152.98,0.04493496]
[1724458662421,0.04808699,153.02,153.0,3.265]
[1724458662817,0.04808699,153.02,152.98,0.04493496]
[1724458664025,3.265,153.01,152.98,0.04493496]
[1724458665227,3.2651,153.0,152.98,0.04493496]
[1724458665414,28.3651,153.0,152.98,0.04493496]
[1724458665725,25.1,153.0,152.98,0.04493496]
[1724458667317,3.2653,152.99,152.98,0.04493496]
[1724458670526,3.2651,153.0,152.98,0.04493496]
[1724458671930,0.04808699,153.02,152.98,0.04493496]
[1724458673018,3.31288699,153.02,152.98,3.31033496]
[1724458674228,0.04808699,153.02,152.99,3.2653]
[1724458674426,0.04808699,153.02,152.98,0.04493496]
[1724458675021,3.31278699,153.02,152.99,3.2653]
[1724458676932,0.04808699,153.02,152.99,3.2653]
[1724458681041,0.04808699,153.02,152.98,0.04493496]
[1724458681330,25.14808699,153.02,152.98,0.04493496]
[1724458681525,28.41278699,153.02,152.98,3.31023496]
[1724458681934,25.14808699,153.02,152.98,0.04493496]
[1724458682633,25.14808699,153.02,152.99,3.2651]
[1724458682634,0.04808699,153.02,152.99,3.2651]
[1724458682834,0.04808699,153.02,152.98,0.04493496]
[1724458684430,0.04808699,153.02,152.99,3.2653]
[1724458686039,0.04808699,153.02,153.0,3.2651]
[1724458686237,0.04808699,153.02,152.98,0.04493496]
[1724458686728,0.04808699,153.02,152.98,1.32653496]
[1724458687226,0.04808699,153.02,153.0,3.2649]
[1724458687838,0.04808699,153.02,153.01,3.2649]
[1724458694040,3.2636,153.07,153.03,3.2644]
[1724458694645,3.2638,153.06,153.03,3.2644]
[1724458694844,3.2638,153.06,153.02,3.2646]
[1724458695059,3.2644,153.03,153.02,0.04389953]
[1724458700743,25.1,153.04,152.97,1.2779]
[1724458700942,25.1,153.01,152.94,66.9493004]
[1724458701148,25.1,152.97,152.94,65.6823004]
[1724458701451,25.1,152.97,152.93,26.12]
[1724458701452,3.2664,152.94,152.93,26.12]
[1724458701646,25.1,152.97,152.93,26.12]
[1724458701945,0.04142241,152.97,152.93,26.16562279]
[1724458702746,3.30722241,152.97,152.93,29.43192279]
[1724458703348,0.04142241,152.97,152.93,26.16562279]
[1724458704654,0.04142241,152.97,152.96,3.2659]
[1724458706049,0.04142241,152.97,152.95,3.2662]
[1724458706353,0.04142241,152.97,152.93,26.16562279]
[1724458707748,0.04142241,152.97,152.96,3.2659]
[1724458708643,3.2649,153.01,152.97,3.2657]
[1724458709250,25.1,153.04,152.96,1.3859]
[1724458709652,0.04560963,153.02,152.98,0.04645431]
[1724458709850,0.04560963,153.02,152.99,3.2653]
[1724458710052,0.04560963,153.02,152.98,0.04645431]
[1724458710946,3.31030963,153.02,152.98,3.31195431]
[1724458712363,3.31030963,153.02,152.99,3.2653]
[1724458713758,0.04560963,153.02,152.99,3.2653]
[1724458714460,0.04560963,153.02,153.0,3.2651]
[1724458714651,0.04560963,153.02,152.98,0.04645431]
[1724458715152,0.04560963,153.02,153.0,3.2649]
[1724458715559,0.04560963,153.02,152.99,3.2653]
[1724458715762,0.04560963,153.02,152.98,0.04645431]
[1724458716053,25.14560963,153.02,152.98,0.04645431]
[1724458716256,25.14560963,153.02,152.98,3.31195431]
[1724458716257,28.41040963,153.02,152.98,3.31195431]
[1724458716859,3.265,153.01,152.98,3.31195431]
[1724458717257,25.1,153.0,152.98,0.04645431]
[1724458717461,3.2653,152.99,152.98,0.04645431]
[1724458717759,28.3653,152.99,152.98,0.04645431]
[1724458718949,3.2658,152.97,152.93,3.2666]
[1724458719170,3.23326852,153.01,152.9,1.3623]
[1724458719171,25.1,152.96,152.9,1.3623]
[1724458720050,3.30842093,152.95,152.92,0.04645588]
[1724458720455,0.04222093,152.95,152.92,0.04645588]
[1724458722359,3.30842093,152.95,152.92,0.04645588]
[1724458723460,0.04222093,152.95,152.92,0.04645588]
[1724458724253,0.04222093,152.95,152.92,3.31325588]
[1724458726259,0.04222093,152.95,152.92,0.04645588]
[1724458727360,0.04222093,152.95,152.94,3.2664]
[1724458728070,0.04222093,152.95,152.93,3.2666]
[1724458731568,0.04222093,152.95,152.94,3.2664]
[1724458734173,0.04222093,152.95,152.93,3.2664]
[1724458734561,0.04222093,152.95,152.92,0.04645588]
[1724458734762,25.1,152.94,152.92,0.04645588]
[1724458735174,28.3665,152.94,152.92,0.04645588]
[1724458735663,25.1,152.94,152.92,0.04645588]
[1724458735864,25.1,152.93,152.85,3.2682]
[1724458736069,25.1,152.89,152.85,3.2682]
[1724458736868,25.14925864,152.89,152.85,3.31733999]
[1724458737262,28.41685864,152.89,152.85,3.31733999]
[1724458737976,3.31685864,152.89,152.86,3.2681]
[1724458738277,0.04925864,152.89,152.86,3.2681]
[1724458738967,0.04925864,152.89,152.87,3.2678]
[1724458739164,0.04925864,152.89,152.85,0.04913999]
[1724458739365,25.1,152.87,152.85,0.04913999]
[1724458739571,28.3679,152.87,152.85,0.04913999]
[1724458739865,25.1,152.87,152.85,0.04913999]
[1724458741765,25.1,152.87,152.85,3.31723999]
[1724458742274,25.1,152.88,152.86,3.2679]
[1724458744771,25.1,152.88,152.85,0.04913999]
[1724458746170,25.1,152.86,152.85,0.04913999]
[1724458746677,28.3681,152.86,152.82,3.2688]
[1724458747269,28.3681,152.86,152.83,3.2687]
[1724458747493,28.3681,152.86,152.83,3.31261508]
[1724458747778,28.4105546,152.86,152.83,3.31261508]
[1724458747984,28.4105546,152.86,152.83,0.04391508]
[1724458748970,28.4105546,152.86,152.82,3.2689]
[1724458748971,25.1,152.84,152.71,26.3709]
[1724458749172,25.1,152.85,152.72,1.04136773]
[1724458749173,25.1,152.8,152.72,1.04136773]
[1724458749376,25.1,152.8,152.77,3.2698]
[1724458749777,25.1,152.78,152.66,51.24]
[1724458750079,0.04224303,152.74,152.73,3.2707]
[1724458750671,25.1,152.8,152.74,3.2705]
[1724458751275,3.2698,152.79,152.74,3.2705]
[1724458751575,25.14380959,152.78,152.75,0.04431926]
[1724458754172,3.2702,152.77,152.75,0.04431926]
[1724458754779,28.3702,152.76,152.75,0.04431926]
[1724458757872,25.14380959,152.78,152.75,0.04431926]
[1724458759178,0.04380959,152.78,152.75,0.04431926]
[1724458759880,0.04380959,152.78,152.76,3.2701]
[1724458760383,0.04380959,152.78,152.75,0.04431926]
[1724458760987,0.04380959,152.78,152.76,3.2702]
[1724458761282,0.04380959,152.78,152.75,0.04431926]
[1724458761487,28.3688,152.83,152.79,3.2696]
[1724458761991,28.3688,152.83,152.76,2.6826]
[1724458762189,3.2688,152.83,152.76,2.6826]
[1724458762578,0.05026977,152.81,152.78,0.04212402]
[1724458762983,0.05026977,152.81,152.8,3.2694]
[1724458770394,25.1,152.85,152.78,0.04212402]
[1724458770693,25.1,152.83,152.78,0.04212402]
[1724458770893,3.269,152.82,152.79,3.2696]
[1724458771496,3.31533253,152.82,152.79,3.31869063]
[1724458772396,0.04633253,152.82,152.79,3.31869063]
[1724458776401,0.04633253,152.82,152.8,3.2694]
[1724458778895,0.04633253,152.82,152.79,0.04909063]
[1724458779087,25.1,152.81,152.79,0.04909063]
[1724458779498,3.2695,152.8,152.76,4.6111]
[1724458779690,25.1,152.79,152.76,4.6111]
[1724458779888,25.1,152.79,152.74,1.3425]
[1724458780599,0.0452983,152.78,152.75,3.31301612]
[1724458780795,0.0452983,152.78,152.75,0.04271612]
[1724458781295,0.0452983,152.78,152.76,3.2701]
[1724458781501,0.0452983,152.78,152.75,0.04271612]
[1724458781798,0.0452983,152.78,152.77,3.27]
[1724458782000,25.1,152.83,152.75,0.04271612]
[1724458782199,25.1,152.83,152.74,1.3425]
[1724458782396,3.269,152.82,152.78,3.2697]
[1724458782597,25.1,152.83,152.78,3.2697]
[1724458782999,3.31822841,152.82,152.79,0.0472942]
[1724458783193,0.04912841,152.82,152.79,3.3166942]
[1724458783900,3.31802841,152.82,152.79,0.0472942]
[1724458784299,0.04912841,152.82,152.79,0.0472942]
[1724458784801,25.1,152.8,152.79,0.0472942]
[1724458785706,28.3694,152.8,152.79,0.0472942]
[1724458785902,25.1,152.8,152.74,1.3425]
[1724458786201,25.1,152.78,152.75,3.2704]
[1724458786598,25.1,152.78,152.74,1.3425]
[1724458786999,28.41680814,152.78,152.74,4.6550971]
[1724458787303,28.41680814,152.78,152.74,1.3845971]
[1724458788397,28.41680814,152.78,152.75,3.2704]
[1724458789197,25.14700814,152.78,152.75,3.2704]
[1724458791605,25.14700814,152.78,152.76,3.2701]
[1724458792005,0.04700814,152.78,152.74,0.0420971]
[1724458795305,0.04700814,152.78,152.77,3.27]
[1724458797009,0.04700814,152.78,152.76,1.2794]
[1724458797010,25.1,152.83,152.76,1.2794]
[1724458798003,0.04863111,152.81,152.79,3.2695]
[1724458798445,0.04863111,152.81,152.8,3.2694]
[1724458799603,0.04863111,152.81,152.79,3.2694]
[1724458800409,0.04863111,152.81,152.8,3.2694]
[1724458801115,0.04863111,152.81,152.78,0.05018757]
[1724458801910,25.1,152.8,152.78,0.05018757]
[1724458802215,3.2696,152.79,152.78,0.05018757]
[1724458802407,25.1,152.8,152.72,70.68373903]
[1724458802615,25.1,152.77,152.72,70.68373903]
[1724458802816,25.1,152.79,152.72,70.68373903]
[1724458803409,25.1,152.79,152.76,3.2702]
[1724458803410,0.04274059,152.77,152.76,3.2702]
[1724458804412,25.1,152.81,152.75,1.3737]
[1724458804609,25.1,152.83,152.75,1.3737]
[1724458804814,3.269,152.82,152.79,3.2695]
[1724458805013,25.1,152.83,152.75,1.3737]
[1724458805317,0.04537119,152.81,152.8,3.2693]
[1724458806716,3.2681,152.86,152.78,26.4619]
[1724458807012,0.0881,152.95,152.78,26.4619]
[1724458807013,25.1,152.89,152.8,25.1]
[1724458807218,25.1,152.89,152.81,1.3447]
[1724458807540,3.2678,152.88,152.83,3.2686]
[1724458807717,0.04139541,152.87,152.84,0.0456993]
[1724458809014,0.04139541,152.87,152.86,3.2681]
[1724458818140,0.1858,152.99,152.85,26.4765]
[1724458818538,25.1,152.94,152.85,26.4765]
[1724458818738,3.2668,152.92,152.87,3.2677]
[1724458818939,3.2668,152.92,152.85,26.4765]
[1724458819142,0.0496037,152.9,152.87,0.04362733]
[1724458819632,0.0496037,152.9,152.88,3.2675]
[1724458819861,0.0496037,152.9,152.87,0.04362733]
[1724458820840,0.0496037,152.9,152.89,3.2674]
[1724458822938,0.0496037,152.9,152.88,4.6414]
[1724458823440,0.0496037,152.9,152.88,3.2676]
[1724458824042,0.0496037,152.9,152.87,0.04362733]
[1724458824246,25.1,152.89,152.87,0.04362733]
[1724458825339,3.2677,152.88,152.87,0.04362733]
[1724458826534,28.3675,152.89,152.87,0.04362733]
[1724458826762,25.1,152.89,152.87,0.04362733]
[1724458827649,25.1,152.88,152.87,0.04362733]
[1724458828039,25.1,152.88,152.8,2.5519]
[1724458828040,25.1,152.88,152.82,3.2689]
[1724458828745,25.1,152.86,152.8,2.5519]
[1724458828944,25.1,152.84,152.8,2.5519]
[1724458829145,25.1,152.84,152.81,0.04497193]
[1724458829350,28.3687,152.84,152.81,0.04497193]
[1724458829744,25.1,152.84,152.81,0.04497193]
[1724458831247,3.2689,152.82,152.81,0.04497193]
[1724458831643,28.3689,152.82,152.81,0.04497193]
[1724458832648,25.1,152.82,152.81,0.04497193]
[1724458832847,25.1,152.84,152.81,0.04497193]
[1724458833254,3.2689,152.83,152.81,0.04497193]
[1724458834645,25.14614287,152.85,152.81,0.04497193]
[1724458835453,0.04614287,152.85,152.81,0.04497193]
[1724458835841,0.04614287,152.85,152.83,3.2686]
[1724458836856,0.04614287,152.85,152.84,3.2685]
[1724458838049,3.2672,152.9,152.86,3.268]
[1724458838555,3.2674,152.89,152.82,2.5666]
[1724458838751,3.2674,152.89,152.84,3.2685]
[1724458838946,0.04132557,152.88,152.85,0.04978287]
[1724458840450,0.04132557,152.88,152.85,3.31808287]
[1724458842051,0.04132557,152.88,152.86,3.2681]
[1724458843260,0.04132557,152.88,152.87,3.2679]
[1724458843860,3.2669,152.92,152.88,3.2675]
[1724458844357,3.267,152.91,152.86,1.3601]
[1724458844855,0.04928178,152.9,152.87,3.2677]
[1724458845161,3.31648178,152.9,152.87,0.04538278]
[1724458845461,0.04928178,152.9,152.87,0.04538278]
[1724458846257,0.04928178,152.9,152.87,3.31328278]
[1724458846758,0.04928178,152.9,152.87,0.04538278]
[1724458846958,0.04928178,152.9,152.89,3.2674]
[1724458851763,25.1,152.95,152.91,3.2668]
[1724458851961,25.1,152.97,152.88,2.6164]
[1724458852168,3.2662,152.95,152.91,3.2669]
[1724458852365,28.3662,152.95,152.91,3.2669]
[1724458852770,3.2664,152.94,152.91,3.31649907]
[1724458852961,25.14940304,152.95,152.91,0.04959907]
[1724458853564,3.2664,152.94,152.91,0.04959907]
[1724458853762,25.14940304,152.95,152.91,0.04959907]
[1724458854159,3.2665,152.94,152.91,0.04959907]
[1724458860071,25.14940304,152.95,152.91,0.04959907]
[1724458860472,3.2665,152.94,152.91,0.04959907]
[1724458862075,3.2668,152.92,152.91,0.04959907]
[1724458862377,25.1,152.94,152.91,0.04959907]
[1724458863169,3.2667,152.93,152.91,0.04959907]
[1724458863365,25.1,152.94,152.91,0.04959907]
[1724458864766,28.3665,152.94,152.91,0.04959907]
[1724458865373,3.2666,152.93,152.91,0.04959907]
[1724458873188,3.2668,152.92,152.91,0.04959907]
[1724458875085,3.2666,152.93,152.91,0.04959907]
[1724458876487,3.2668,152.92,152.91,0.04959907]
[1724458876688,25.1,152.92,152.82,28.44895862]
[1724458876883,25.1,152.92,152.83,2.6447]
[1724458877085,28.3669,152.92,152.84,25.1]
[1724458877284,28.3669,152.92,152.83,5.89837381]
[1724458877285,25.1,152.92,152.83,5.89837381]
[1724458877611,3.2671,152.91,152.83,5.89837381]
[1724458877792,0.04324627,152.89,152.85,0.04574808]
[1724458877984,0.0444976,152.89,152.85,0.04380362]
[1724458878991,3.3119976,152.89,152.85,0.04380362]
[1724458879589,3.2677,152.88,152.85,0.04380362]
[1724458879782,28.3677,152.88,152.85,0.04380362]
[1724458880195,3.2679,152.87,152.85,0.04380362]
[1724458880600,25.1,152.88,152.85,0.04380362]
[1724458881297,28.3677,152.88,152.85,0.04380362]
[1724458881894,25.1,152.88,152.85,0.04380362]
[1724458882095,3.3119976,152.89,152.85,0.04380362]
[1724458886700,3.3119976,152.89,152.85,3.31210362]
[1724458891604,3.2677,152.88,152.85,3.31210362]
[1724458892007,0.0444976,152.89,152.85,3.31210362]
[1724458892206,3.3119976,152.89,152.85,3.31210362]
[1724458893707,0.0444976,152.89,152.85,0.04380362]
[1724458894401,0.0444976,152.89,152.86,3.268]